fUSD/lending_fUSD_20240524
["ID","MTS","AMOUNT","RATE_DAILY","PERIOD"]
[327889148,1716580274934,-500.0,0.00034794,5]
[327889149,1716580274944,-642.71,0.00034794,5]
[327889150,1716580274953,-889.21,0.00034794,5]
[327889151,1716580274963,-500.0,0.00034794,5]
[327889152,1716580274972,-1339.48,0.00034794,5]
[327889153,1716580274982,-500.0,0.00034794,5]
[327889154,1716580274991,-500.0,0.00034794,5]
[327889155,1716580275000,-589.12,0.00034794,5]
[327889156,1716580275009,-1681.42,0.00034794,5]
[327889157,1716580275018,-500.0,0.00034794,5]
[327889158,1716580275028,-437.95207301,0.00034794,5]
[327889159,1716580275037,-500.0,0.00034794,5]
[327889160,1716580275046,-3985.81,0.00034794,5]
[327889161,1716580275055,-500.0,0.00034794,5]
[327889162,1716580275064,-957.13,0.00034794,5]
[327889163,1716580275073,-500.0,0.00034794,5]
[327889164,1716580275085,-500.0,0.00034794,5]
[327889165,1716580275094,-500.0,0.00034794,5]
[327889166,1716580275104,-500.0,0.00034794,5]
[327889167,1716580275113,-500.0,0.00034794,5]
[327889168,1716580275123,-500.0,0.00034794,5]
[327889169,1716580275132,-550.59,0.00034794,5]
[327889170,1716580275141,-500.0,0.00034794,5]
[327889171,1716580275150,-500.0,0.00034794,5]
[327889172,1716580275159,-500.0,0.00034794,5]
[327889173,1716580275169,-500.0,0.00034794,5]
[327889174,1716580275178,-2690.54,0.00034794,5]
[327889175,1716580275187,-981.3,0.00034794,5]
[327889176,1716580275197,-765.74,0.00034794,5]
[327889177,1716580275206,-500.0,0.00034794,5]
[327889178,1716580275215,-1006.75,0.00034794,5]
[327889179,1716580275224,-1344.33,0.00034794,5]
[327889180,1716580275233,-1178.9,0.00034794,5]
[327889181,1716580275242,-680.33,0.00034794,5]
[327889182,1716580275251,-500.0,0.00034794,5]
[327889183,1716580275261,-1834.86,0.00034794,5]
[327889184,1716580275270,-520.05,0.00034794,5]
[327889185,1716580275279,-4616.88,0.00034794,5]
[327889186,1716580275289,-913.32,0.00034794,5]
[327889187,1716580275298,-500.0,0.00034794,5]
[327889188,1716580275307,-500.0,0.00034794,5]
[327889189,1716580275317,-30781.90666336,0.000348,5]
[327889190,1716580275328,-788.0,0.000348,23]
[327889191,1716580275337,-464.54,0.000348,2]
[327889192,1716580275347,-743.96,0.000348,2]
[327889193,1716580275356,-7646.0577771,0.000349,30]
[327889194,1716580275365,-6062.98466782,0.000349,2]
[327889195,1716580275374,-218.19,0.000349,2]
[327889196,1716580275383,-218.19,0.000349,2]
[327889197,1716580275392,-218.19,0.000349,2]
[327889198,1716580275401,-218.19,0.000349,2]
[327889199,1716580275410,-218.19,0.000349,2]
[327889200,1716580275419,-218.19,0.000349,2]
[327889201,1716580275427,-218.19,0.000349,2]
[327889202,1716580275436,-218.19,0.000349,2]
[327889203,1716580275445,-218.19,0.000349,2]
[327889204,1716580275455,-218.19,0.000349,2]
[327889205,1716580275464,-218.19,0.000349,2]
[327889206,1716580275473,-218.19,0.000349,2]
[327889207,1716580275482,-218.19,0.000349,2]
[327889208,1716580275491,-218.19,0.000349,2]
[327889209,1716580275500,-218.19,0.000349,2]
[327889210,1716580275509,-218.19,0.000349,2]
[327889211,1716580275519,-218.19,0.000349,2]
[327889212,1716580275528,-218.19,0.000349,2]
[327889213,1716580275537,-218.19,0.000349,2]
[327889214,1716580275546,-218.19,0.000349,2]
[327889215,1716580275555,-153.55,0.000349,2]
[327889216,1716580275565,-153.55,0.000349,2]
[327889217,1716580275574,-153.55,0.000349,2]
[327889218,1716580275586,-153.55,0.000349,2]
[327889219,1716580275596,-153.55,0.000349,2]
[327889220,1716580275605,-153.55,0.000349,2]
[327889221,1716580275615,-153.55,0.000349,2]
[327889222,1716580275624,-153.55,0.000349,2]
[327889223,1716580275634,-153.55,0.000349,2]
[327889224,1716580275643,-153.55,0.000349,2]
[327889225,1716580275653,-153.55,0.000349,2]
[327889226,1716580275663,-153.55,0.000349,2]
[327889227,1716580275673,-153.55,0.000349,2]
[327889228,1716580275682,-153.55,0.000349,2]
[327889229,1716580275691,-153.55,0.000349,2]
[327889230,1716580275701,-153.55,0.000349,2]
[327889231,1716580275710,-663.41629082,0.000349,30]
[327889232,1716580275719,-663.41629079,0.000349,30]
[327889233,1716580275729,-663.41629079,0.000349,30]
[327889234,1716580275739,-663.41629079,0.000349,30]
[327889235,1716580275748,-663.41629079,0.000349,30]
[327889236,1716580275758,-663.41629079,0.000349,30]
[327889237,1716580275768,-663.41629079,0.000349,30]
[327889238,1716580275777,-663.41629079,0.000349,30]
[327889239,1716580275787,-2000.0,0.00034986,30]
[327889240,1716580275797,-50000.0,0.00035,15]
[327889241,1716580275807,-500.0,0.00035,30]
[327889242,1716580275820,-377.22,0.00035,2]
[327889243,1716580275831,-280.06193418,0.00035,120]
[327889244,1716580275841,-2483.30808,0.00035,2]
[327889245,1716580275851,-199.0,0.00035,61]
[327889246,1716580275862,-748.65139147,0.00035,36]
[327889247,1716580275872,-500.17871776,0.00035,30]
[327889248,1716580275881,-156.5595305,0.00035,15]
[327889249,1716580275892,-45317.77910565,0.00035,2]
[327889250,1716580275902,-10271.26703736,0.00035,15]
[327889251,1716580275912,-103447.24847051,0.00035,30]
[327889252,1716580275922,-1133.20005046,0.00035,4]
[327889253,1716580275932,-151.0,0.00035,7]
[327889254,1716580275942,-151.988256,0.00035,7]
[327889255,1716580275951,-151.988256,0.00035,7]
[327889256,1716580275960,-289.725,0.00035,7]
[327889257,1716580275970,-151.0,0.00035,7]
[327889258,1716580275979,-151.0,0.00035,7]
[327889259,1716580275989,-151.0,0.00035,7]
[327889260,1716580275999,-151.0,0.00035,7]
[327889261,1716580276009,-151.0,0.00035,7]
[327889262,1716580276019,-151.0,0.00035,7]
[327889263,1716580276028,-151.0,0.00035,7]
[327889264,1716580276037,-151.0,0.00035,7]
[327889265,1716580276047,-151.0,0.00035,7]
[327889266,1716580276056,-151.0,0.00035,7]
[327889267,1716580276067,-151.0,0.00035,7]
[327889268,1716580276078,-151.0,0.00035,7]
[327889269,1716580276088,-151.0,0.00035,7]
[327889270,1716580276097,-151.0,0.00035,7]
[327889271,1716580276106,-254.920576,0.00035,7]
[327889272,1716580276115,-254.920576,0.00035,7]
[327889273,1716580276124,-201.380404,0.00035,7]
[327889274,1716580276135,-151.0,0.00035,7]
[327889275,1716580276144,-151.0,0.00035,7]
[327889276,1716580276154,-151.0,0.00035,7]
[327889277,1716580276163,-151.0,0.00035,7]
[327889278,1716580276173,-151.0,0.00035,7]
[327889279,1716580276182,-151.0,0.00035,7]
[327889280,1716580276194,-151.0,0.00035,7]
[327889281,1716580276215,-151.0,0.00035,7]
[327889282,1716580276236,-188.349215,0.00035,7]
[327889283,1716580276257,-188.349215,0.00035,7]
[327889284,1716580276279,-151.0,0.00035,7]
[327889285,1716580276300,-151.0,0.00035,7]
[327889286,1716580276320,-192.29146,0.00035,7]
[327889287,1716580276341,-2000.0,0.00035,2]
[327889288,1716580276362,-2000.0,0.00035,2]
[327889289,1716580276372,-611.33,0.00035,2]
[327889290,1716580276382,-2300.449256,0.00035,7]
[327889291,1716580276392,-154.83423,0.00035,7]
[327889292,1716580276401,-2300.449256,0.00035,7]
[327889293,1716580276410,-266.795098,0.00035,7]
[327889294,1716580276419,-266.795098,0.00035,7]
[327889295,1716580276430,-151.0,0.00035,7]
[327889296,1716580276440,-151.0,0.00035,7]
[327889297,1716580276450,-151.0,0.00035,7]
[327889298,1716580276460,-151.0,0.00035,7]
[327889299,1716580276572,-263.681164,0.00035,7]
[327889300,1716580276585,-263.681164,0.00035,7]
[327889301,1716580276594,-2500.0,0.00035,2]
[327889302,1716580276603,-745.44,0.00035008,30]
[327889303,1716580276612,-745.44,0.00035008,30]
[327889304,1716580276621,-425.0,0.00035014,120]
[327889305,1716580276631,-699.0,0.00035051,2]
[327889306,1716580276640,-552.0,0.00035051,2]
[327889307,1716580276649,-250.0,0.00035068,5]
[327889308,1716580276659,-652.73,0.00035068,5]
[327889309,1716580276669,-2498.14,0.00035068,5]
[327889310,1716580276678,-500.0,0.00035068,5]
[327889311,1716580276688,-642.71,0.00035068,5]
[327889312,1716580276698,-889.21,0.00035068,5]
[327889313,1716580276707,-500.0,0.00035068,5]
[327889314,1716580276717,-1339.48,0.00035068,5]
[327889315,1716580276727,-500.0,0.00035068,5]
[327889316,1716580276737,-500.0,0.00035068,5]
[327889317,1716580276746,-589.12,0.00035068,5]
[327889318,1716580276756,-1681.42,0.00035068,5]
[327889319,1716580276765,-500.0,0.00035068,5]
[327889320,1716580276774,-505.97,0.00035068,5]
[327889321,1716580276784,-3985.81,0.00035068,5]
[327889322,1716580276794,-500.0,0.00035068,5]
[327889323,1716580276804,-957.13,0.00035068,5]
[327889324,1716580276818,-500.0,0.00035068,5]
[327889325,1716580276829,-579.32,0.00035068,5]
[327889326,1716580276838,-355.82629183,0.00035068,5]
[327889327,1716580276847,-384.96,0.00035068,5]
[327889328,1716580276860,-500.0,0.00035068,5]
[327889329,1716580276870,-500.0,0.00035068,5]
[327889330,1716580276880,-550.59,0.00035068,5]
[327889331,1716580276892,-500.0,0.00035068,5]
[327889332,1716580276903,-500.0,0.00035068,5]
[327889333,1716580276913,-500.0,0.00035068,5]
[327889334,1716580276924,-500.0,0.00035068,5]
[327889335,1716580276934,-2690.54,0.00035068,5]
[327889336,1716580276943,-981.3,0.00035068,5]
[327889337,1716580276953,-765.74,0.00035068,5]
[327889338,1716580276963,-160.44,0.00035068,5]
[327889339,1716580276972,-1006.75,0.00035068,5]
[327889340,1716580276982,-1344.33,0.00035068,5]
[327889341,1716580276991,-1178.9,0.00035068,5]
[327889342,1716580277000,-680.33,0.00035068,5]
[327889343,1716580277010,-500.0,0.00035068,5]
[327889344,1716580277021,-1834.86,0.00035068,5]
[327889345,1716580277030,-520.05,0.00035068,5]
[327889346,1716580277040,-4616.88,0.00035068,5]
[327889347,1716580277050,-913.32,0.00035068,5]
[327889348,1716580277059,-500.0,0.00035068,5]
[327889349,1716580277069,-500.0,0.00035068,5]
[327889350,1716580277079,-663.41629079,0.00035078,30]
[327889351,1716580277089,-744.0,0.00035087,3]
[327889352,1716580277099,-381.0,0.00035218,8]
[327889353,1716580277109,-745.44,0.00035281,30]
[327889354,1716580277119,-745.44,0.00035281,30]
[327889355,1716580277129,-788.0,0.000353,24]
[327889356,1716580277138,-218.19,0.000353,3]
[327889357,1716580277149,-218.19,0.000353,3]
[327889358,1716580277158,-218.19,0.000353,3]
[327889359,1716580277168,-218.19,0.000353,3]
[327889360,1716580277179,-218.19,0.000353,3]
[327889361,1716580277189,-218.19,0.000353,3]
[327889362,1716580277198,-218.19,0.000353,3]
[327889363,1716580277208,-218.19,0.000353,3]
[327889364,1716580277218,-218.19,0.000353,3]
[327889365,1716580277228,-218.19,0.000353,3]
[327889366,1716580277238,-218.19,0.000353,3]
[327889367,1716580277248,-218.19,0.000353,3]
[327889368,1716580277258,-218.19,0.000353,3]
[327889369,1716580277267,-218.19,0.000353,3]
[327889370,1716580277277,-218.19,0.000353,3]
[327889371,1716580277287,-218.19,0.000353,3]
[327889372,1716580277300,-218.19,0.000353,3]
[327889373,1716580277310,-218.19,0.000353,3]
[327889374,1716580277319,-218.19,0.000353,3]
[327889375,1716580277331,-218.19,0.000353,3]
[327889376,1716580277341,-153.55,0.000353,3]
[327889377,1716580277351,-153.55,0.000353,3]
[327889378,1716580277361,-153.55,0.000353,3]
[327889379,1716580277371,-153.55,0.000353,3]
[327889380,1716580277381,-153.55,0.000353,3]
[327889381,1716580277390,-153.55,0.000353,3]
[327889382,1716580277401,-153.55,0.000353,3]
[327889383,1716580277412,-153.55,0.000353,3]
[327889384,1716580277422,-153.55,0.000353,3]
[327889385,1716580277433,-153.55,0.000353,3]
[327889386,1716580277443,-153.55,0.000353,3]
[327889387,1716580277454,-153.55,0.000353,3]
[327889388,1716580277464,-153.55,0.000353,3]
[327889389,1716580277475,-153.55,0.000353,3]
[327889390,1716580277486,-153.55,0.000353,3]
[327889391,1716580277495,-153.55,0.000353,3]
[327889392,1716580277505,-153.55,0.000353,3]
[327889393,1716580277514,-153.55,0.000353,3]
[327889394,1716580277524,-153.55,0.000353,3]
[327889395,1716580277533,-250.0,0.00035342,5]
[327889396,1716580277543,-652.73,0.00035342,5]
[327889397,1716580277554,-2498.14,0.00035342,5]
[327889398,1716580277564,-636.37,0.00035342,5]
[327889399,1716580277574,-642.71,0.00035342,5]
[327889400,1716580277585,-889.21,0.00035342,5]
[327889401,1716580277595,-500.0,0.00035342,5]
[327889402,1716580277605,-1339.48,0.00035342,5]
[327889403,1716580277615,-500.0,0.00035342,5]
[327889404,1716580277625,-497.66629047,0.00035342,5]
[327889405,1716580277635,-589.12,0.00035342,5]
[327889406,1716580277645,-1681.42,0.00035342,5]
[327889407,1716580277654,-500.0,0.00035342,5]
[327889408,1716580277664,-3985.81,0.00035342,5]
[327889409,1716580277674,-500.0,0.00035342,5]
[327889410,1716580277683,-957.13,0.00035342,5]
[327889411,1716580277693,-500.0,0.00035342,5]
[327889412,1716580277702,-500.0,0.00035342,5]
[327889413,1716580277711,-500.0,0.00035342,5]
[327889414,1716580277720,-550.59,0.00035342,5]
[327889415,1716580277730,-559.85,0.00035342,5]
[327889416,1716580277739,-500.0,0.00035342,5]
[327889417,1716580277748,-500.0,0.00035342,5]
[327889418,1716580277757,-500.0,0.00035342,5]
[327889419,1716580277768,-2690.54,0.00035342,5]
[327889420,1716580277778,-981.3,0.00035342,5]
[327889421,1716580277789,-765.74,0.00035342,5]
[327889422,1716580277799,-1006.75,0.00035342,5]
[327889423,1716580277811,-1344.33,0.00035342,5]
[327889424,1716580277823,-1178.9,0.00035342,5]
[327889425,1716580277833,-680.33,0.00035342,5]
[327889426,1716580277842,-500.0,0.00035342,5]
[327889427,1716580277854,-1834.86,0.00035342,5]
[327889428,1716580277863,-520.05,0.00035342,5]
[327889429,1716580277872,-4616.88,0.00035342,5]
[327889430,1716580277882,-913.32,0.00035342,5]
[327889431,1716580277894,-500.0,0.00035342,5]
[327889432,1716580277904,-382.52,0.00035356,2]
[327889433,1716580277913,-699.0,0.00035398,2]
[327889434,1716580277923,-552.0,0.00035398,2]
[327889435,1716580277932,-2000.0,0.000354,15]
[327889436,1716580277941,-486.0,0.000354,20]
[327889437,1716580277950,-486.0,0.000354,20]
[327889438,1716580277959,-6103.1360419,0.000354,8]
[327889439,1716580277969,-663.41629079,0.000354,31]
[327889440,1716580277978,-428.08480055,0.000354,7]
[327889441,1716580277987,-425.0,0.00035468,120]
[327889442,1716580277996,-826.151882,0.00035499,120]
[327889443,1716580278005,-500.0,0.000355,3]
[327889444,1716580278014,-500.0,0.000355,3]
[327889445,1716580278023,-500.0,0.000355,3]
[327889446,1716580278032,-500.0,0.000355,3]
[327889447,1716580278042,-500.0,0.000355,3]
[327889448,1716580278051,-500.0,0.000355,3]
[327889449,1716580278060,-17119101.39924128,0.000355,5]
[327889450,1716580278235,-7583.84316517,0.000355,5]
[327889451,1716580278251,-63134.45544131,0.000355,5]
[327889452,1716580278265,-105557.79398135,0.000355,5]
[327889549,1716581431543,-397.66661736,0.00012897,2]
[327889550,1716581431552,-7521.94316228,0.00012897,2]
[327889551,1716581431562,-1386.55437292,0.00012899,2]
[327889552,1716581431571,-1000.0,0.000129,2]
[327889553,1716581431581,-318.04989705,0.00012998,2]
[327889554,1716581431590,-298.89054864,0.00012999,2]
[327889555,1716581431599,-189.67,0.00013973,2]
[327889556,1716581431610,-165.33,0.00013973,2]
[327889557,1716581431620,-155.16,0.00013973,2]
[327889558,1716581431629,-165.43133715,0.00017256,2]
[327889559,1716581431639,-157.33611607,0.00017257,2]
[327889560,1716581431648,-407.61021482,0.00017258,2]
[327889561,1716581431657,-4294.64652253,0.00017258,2]
[327889562,1716581431667,-155.54702815,0.00017258,2]
[327889563,1716581431676,-155.08356513,0.00017259,2]
[327889564,1716581431685,-266.42429918,0.00017259,2]
[327889565,1716581431694,-2699.7261829,0.00017259,2]
[327889566,1716581431707,-2572.45024398,0.00017259,2]
[327889567,1716581431716,-488.66319788,0.00017259,2]
[327889568,1716581431725,-499.99,0.0001726,2]
[327889569,1716581431736,-3882.63870913,0.000192,2]
[327889570,1716581431746,-189.67,0.00020447,2]
[327889571,1716581431756,-1050.0,0.00021,2]
[327889572,1716581431765,-500.0,0.000219,2]
[327889573,1716581431775,-163.86,0.00021918,2]
[327889574,1716581431784,-184.33,0.00022045,2]
[327889575,1716581431794,-153.23677825,0.00022056,2]
[327889576,1716581431803,-153.23677825,0.00022447,2]
[327889577,1716581431813,-394.56411212,0.00023,2]
[327889578,1716581431824,-463.295,0.00023,2]
[327889579,1716581432246,-242.14088788,0.00023,2]
[327889580,1716581432256,-158.5874752,0.00023379,2]
[327889581,1716581432265,-155.16,0.00023435,2]
[327889582,1716581432276,-1243.68152037,0.00023465,28]
[327889583,1716581432288,-158.52692095,0.00023575,2]
[327889584,1716581432297,-250.0,0.00023599,2]
[327889585,1716581432306,-158.52692095,0.00023628,2]
[327889586,1716581432315,-317.55,0.00023642,2]
[327889588,1716581432324,-219.82,0.00023957,2]
[327889590,1716581432334,-901.29519353,0.00023964,2]
[327889592,1716581432346,-1098.70480647,0.00023964,2]
[327889594,1716581432355,-250.0,0.00023965,2]
[327889596,1716581432365,-250.0,0.00023971,2]
[327889598,1716581432374,-1000.0,0.00023977,2]
[327889600,1716581432383,-88.07449172,0.00024145,2]
[327889603,1716581432395,-67.11972615,0.00024145,2]
[327889605,1716581432404,-167.0,0.00024162,2]
[327889607,1716581432413,-184.33,0.00024309,2]
[327889609,1716581432422,-974.0,0.00024496,2]
[327889610,1716581432431,-612.138,0.00024496,2]
[327889612,1716581432440,-770.67171385,0.00024496,2]
[327889615,1716581432455,-527.29128615,0.00024496,2]
[327889617,1716581432465,-613.0,0.00024496,2]
[327889619,1716581432474,-213.0,0.00024496,2]
[327889621,1716581432483,-439.0,0.00024496,2]
[327889623,1716581432493,-2371.365,0.00024496,2]
[327889625,1716581432502,-445.0,0.00024496,2]
[327889627,1716581432512,-809.0,0.00024496,2]
[327889629,1716581432523,-164.0,0.00024496,2]
[327889631,1716581432533,-1650.0,0.00024496,2]
[327889633,1716581432542,-215.0,0.00024496,2]
[327889635,1716581432551,-10958.207,0.00024496,2]
[327889637,1716581432560,-1061.0,0.00024496,2]
[327889639,1716581432569,-164.91041034,0.00024697,2]
[327889641,1716581432578,-500.0,0.000247,2]
[327889643,1716581432587,-164.91041034,0.0002473,2]
[327889645,1716581432598,-1150.0,0.00025,2]
[327889647,1716581432607,-158.09057614,0.00025005,2]
[327889649,1716581432616,-164.91041034,0.00025029,2]
[327889652,1716581432629,-384.36,0.00025414,2]
[327889654,1716581432638,-167.0,0.00025492,2]
[327889656,1716581432648,-164.91041034,0.00025579,2]
[327889658,1716581432657,-180.0,0.0002633,2]
[327889660,1716581432666,-317.55,0.00026382,2]
[327889662,1716581432676,-160.08255262,0.00026483,2]
[327889664,1716581432685,-184.33,0.00026573,2]
[327889666,1716581432695,-158.09057614,0.00026634,2]
[327889668,1716581432704,-158.09057614,0.00026641,2]
[327889670,1716581432713,-167.0,0.00026821,2]
[327889672,1716581432723,-158.09057614,0.00026886,2]
[327889674,1716581432732,-189.67,0.00026921,2]
[327889676,1716581432741,-1000.0,0.00026974,2]
[327889678,1716581432750,-1200.0,0.00027,2]
[327889680,1716581432759,-157.39571036,0.00027308,2]
[327889682,1716581432770,-159.52436598,0.0002735,2]
[327889684,1716581432779,-323.077,0.00027496,2]
[327889686,1716581432788,-150.0,0.00027496,2]
[327889688,1716581432797,-1344.837,0.00027496,2]
[327889690,1716581432806,-159.03411987,0.00027518,2]
[327889691,1716581432815,-153.32026937,0.00027626,2]
[327889693,1716581432825,-1000.0,0.00028,5]
[327889696,1716581432834,-155.0,0.00028015,2]
[327889698,1716581432844,-158.5874752,0.00028016,2]
[327889700,1716581432853,-500.0,0.00028102,2]
[327889702,1716581432863,-500.0,0.00028102,2]
[327889704,1716581432872,-500.0,0.00028102,2]
[327889706,1716581432881,-167.0,0.0002815,2]
[327889708,1716581432891,-153.23677825,0.00028218,2]
[327889710,1716581432903,-155.05841431,0.00028261,2]
[327889712,1716581432912,-2346.802,0.000283,2]
[327889714,1716581432922,-547.60950299,0.000284,2]
[327889716,1716581432931,-42323.8979,0.000284,2]
[327889718,1716581432941,-500.0,0.000284,2]
[327889720,1716581432950,-1000.0,0.000284,2]
[327889722,1716581432960,-2500.0,0.000284,2]
[327889724,1716581432969,-804.86493398,0.0002845,2]
[327889726,1716581432978,-211.04941276,0.0002849,2]
[327889728,1716581432987,-92842.90225693,0.000285,5]
[327889741,1716581433112,-4774.57106677,0.000285,5]
[327889744,1716581433124,-308.4,0.000285,5]
[327889893,1716581437487,-1027.97165633,0.000285,5]
[327889895,1716581437499,-2319.28685203,0.000285,5]
[327889896,1716581437511,-706.76824054,0.000285,5]
[327889901,1716581437720,-692.6,0.000285,5]
[327889902,1716581437783,-572334.5499274,0.000285,5]
[327889904,1716581437793,-500.0,0.0002865,2]
[327889906,1716581437802,-184.33,0.00028837,2]
[327889908,1716581437811,-1250.0,0.00029,2]
[327889910,1716581437820,-164.91041034,0.00029086,2]
[327889912,1716581437829,-317.55,0.00029121,2]
[327889914,1716581437839,-500.0,0.00029198,2]
[327889916,1716581437849,-500.0,0.00029198,2]
[327889918,1716581437858,-500.0,0.00029198,2]
[327889920,1716581437867,-804.86493394,0.00029443,2]
[327889922,1716581437877,-164.91041034,0.00029447,2]
[327889924,1716581437887,-158.5874752,0.00029486,2]
[327889926,1716581437896,-159.52436598,0.00029582,2]
[327889928,1716581437906,-164.91041034,0.00029672,2]
[327889930,1716581437915,-168.02233262,0.00029704,2]
[327889933,1716581437924,-200.0,0.00029891,15]
[327889935,1716581437935,-1000.0,0.00029971,2]
[327889938,1716581437944,-30000.0,0.0003,4]
[327889941,1716581437953,-153.99414245,0.00030233,7]
[327889943,1716581437963,-158.09057614,0.00030273,7]
[327889946,1716581437972,-500.0,0.00030294,10]
[327889949,1716581437981,-500.0,0.00030294,10]
[327889952,1716581437991,-500.0,0.00030294,10]
[327889955,1716581438000,-804.86493394,0.00030436,2]
[327889956,1716581438009,-157.39571038,0.00030454,7]
[327889958,1716581438019,-155.22175349,0.00030478,7]
[327889961,1716581438031,-150.0,0.00030496,2]
[327889963,1716581438042,-157.7851145,0.00030531,7]
[327889965,1716581438051,-158.5874752,0.00030794,7]
[327889967,1716581438060,-411.92469465,0.00030929,10]
[327889969,1716581438070,-200.73409026,0.00030929,5]
[327889971,1716581438080,-1206.88479579,0.00030929,4]
[327889973,1716581438089,-212.23868663,0.00030929,2]
[327889975,1716581438099,-800.0,0.00030986,2]
[327889977,1716581438109,-230.0,0.00031,5]
[327889979,1716581438118,-20000.0,0.00031,4]
[327889981,1716581438127,-1300.0,0.00031,2]
[327889983,1716581438137,-184.33,0.00031101,2]
[327889985,1716581438146,-386.24,0.00031151,2]
[327889987,1716581438155,-480.51220605,0.0003119,3]
[327889989,1716581438165,-200.0,0.00031197,2]
[327889991,1716581438174,-500.0,0.00031197,2]
[327889993,1716581438183,-200.0,0.00031197,2]
[327889995,1716581438193,-500.0,0.0003139,10]
[327889997,1716581438202,-300.0,0.0003139,10]
[327889999,1716581438213,-804.86493394,0.00031429,2]
[327890001,1716581438224,-500.0,0.00031506,5]
[327890002,1716581438233,-256.0,0.00031506,5]
[327890003,1716581438244,-241.15996154,0.00031506,5]
[327890004,1716581438253,-936.8,0.00031506,5]
[327890005,1716581438262,-388.44,0.00031506,5]
[327890006,1716581438274,-500.0,0.00031506,5]
[327890007,1716581438283,-500.0,0.00031506,5]
[327890008,1716581438293,-500.0,0.00031506,5]
[327890009,1716581438304,-500.0,0.00031506,5]
[327890010,1716581438314,-500.0,0.00031506,5]
[327890011,1716581438323,-500.0,0.00031506,5]
[327890012,1716581438332,-500.0,0.00031506,5]
[327890013,1716581438340,-500.0,0.00031506,5]
[327890014,1716581438349,-500.0,0.00031506,5]
[327890015,1716581438359,-623.55,0.00031506,5]
[327890017,1716581438368,-1008.96,0.00031506,5]
[327890019,1716581438377,-500.0,0.00031506,5]
[327890021,1716581438386,-500.0,0.00031506,5]
[327890023,1716581438396,-500.0,0.00031506,5]
[327890025,1716581438405,-530.44,0.00031506,5]
[327890027,1716581438414,-500.0,0.00031506,5]
[327890029,1716581438423,-502.3,0.00031506,5]
[327890031,1716581438432,-630.53,0.00031506,5]
[327890033,1716581438442,-221.68,0.00031506,5]
[327890035,1716581438451,-500.0,0.00031506,5]
[327890037,1716581438461,-232.36552982,0.00031506,5]
[327890039,1716581438470,-500.0,0.00031506,5]
[327890041,1716581438479,-500.0,0.00031506,5]
[327890043,1716581438489,-504.12,0.00031506,5]
[327890045,1716581438498,-500.0,0.00031506,5]
[327890047,1716581438507,-500.0,0.00031506,5]
[327890049,1716581438516,-500.0,0.00031506,5]
[327890051,1716581438527,-500.0,0.00031506,5]
[327890053,1716581438536,-500.0,0.00031506,5]
[327890074,1716581438734,-688.07,0.00031506,5]